[Event "*** SCC Grand Prix: Titled Tuesday Blitz"]
[Site "Chess.com"]
[Date "2020.07.07"]
[Round "1"]
[White "Falia-p"]
[Black "jacky72"]
[Result "0-1"]
[WhiteElo "2312"]
[BlackElo "2639"]
[TimeControl "180+1"]
[EndTime "10:09:59 PDT"]
[Termination "jacky72 won by checkmate"]

1. e4 {[%clk 0:03:00.9]} 1... e5 {[%clk 0:02:59.5]} 2. Nf3 {[%clk 0:02:59.6]}
2... Nc6 {[%clk 0:02:56.8]} 3. Bb5 {[%clk 0:02:59.4]} 3... a6 {[%clk 0:02:56.3]}
4. Ba4 {[%clk 0:02:58.3]} 4... d6 {[%clk 0:02:57.2]} 5. O-O {[%clk 0:02:55.8]}
5... Bd7 {[%clk 0:02:56.3]} 6. d3 {[%clk 0:02:52.1]} 6... g6 {[%clk 0:02:56.6]}
7. Nc3 {[%clk 0:02:49.7]} 7... Bg7 {[%clk 0:02:57]} 8. Nd5 {[%clk 0:02:45.8]}
8... Nce7 {[%clk 0:02:53.9]} 9. Bb3 {[%clk 0:02:44]} 9... c6 {[%clk 0:02:52.7]}
10. Ne3 {[%clk 0:02:41.9]} 10... Nf6 {[%clk 0:02:50]} 11. h3 {[%clk 0:02:41.3]}
11... O-O {[%clk 0:02:49.6]} 12. c3 {[%clk 0:02:38.7]} 12... Qc7 {[%clk
0:02:46.9]} 13. Qc2 {[%clk 0:02:32.9]} 13... h6 {[%clk 0:02:46.2]} 14. d4 {[%clk
0:02:32.5]} 14... Be6 {[%clk 0:02:34.1]} 15. Bxe6 {[%clk 0:02:26.6]} 15... fxe6
{[%clk 0:02:35]} 16. dxe5 {[%clk 0:02:26.7]} 16... dxe5 {[%clk 0:02:32.3]} 17.
Nc4 {[%clk 0:02:25.7]} 17... Nh5 {[%clk 0:02:30.2]} 18. Be3 {[%clk 0:02:02.1]}
18... b5 {[%clk 0:02:27.6]} 19. Ncd2 {[%clk 0:02:00.5]} 19... Nf4 {[%clk
0:02:25.6]} 20. a4 {[%clk 0:01:56.3]} 20... c5 {[%clk 0:02:16.8]} 21. axb5
{[%clk 0:01:51.5]} 21... axb5 {[%clk 0:02:17.7]} 22. Rxa8 {[%clk 0:01:51]} 22...
Rxa8 {[%clk 0:02:16.4]} 23. Bxf4 {[%clk 0:01:44.7]} 23... exf4 {[%clk
0:02:16.2]} 24. Qb3 {[%clk 0:01:43.6]} 24... Qc6 {[%clk 0:02:13.1]} 25. Re1
{[%clk 0:01:34.7]} 25... g5 {[%clk 0:02:13]} 26. e5 {[%clk 0:01:29.7]} 26... Ng6
{[%clk 0:02:04.6]} 27. Ne4 {[%clk 0:01:25.6]} 27... c4 {[%clk 0:01:57.1]} 28.
Qc2 {[%clk 0:01:24.8]} 28... Ne7 {[%clk 0:01:38.1]} 29. Nf6+ {[%clk 0:01:23.2]}
29... Kf7 {[%clk 0:01:37.4]} 30. Qh7 {[%clk 0:01:15.9]} 30... Rh8 {[%clk
0:01:34.9]} 31. Qc2 {[%clk 0:01:09.3]} 31... Nf5 {[%clk 0:01:30]} 32. Rd1 {[%clk
0:01:06]} 32... Bxf6 {[%clk 0:01:25.4]} 33. exf6 {[%clk 0:01:05.3]} 33... Kxf6
{[%clk 0:01:26.3]} 34. Qe2 {[%clk 0:01:01.7]} 34... Qc7 {[%clk 0:01:15.5]} 35.
Qe4 {[%clk 0:00:47.2]} 35... Rd8 {[%clk 0:01:10.9]} 36. Rxd8 {[%clk 0:00:43.1]}
36... Qxd8 {[%clk 0:01:11.8]} 37. Qe5+ {[%clk 0:00:43.4]} 37... Kf7 {[%clk
0:01:05.4]} 38. Qxb5 {[%clk 0:00:41.3]} 38... Qd1+ {[%clk 0:01:03.9]} 39. Kh2
{[%clk 0:00:41]} 39... Qd5 {[%clk 0:01:04.4]} 40. Qxc4 {[%clk 0:00:29.9]} 40...
Qd6 {[%clk 0:00:57.5]} 41. Qe4 {[%clk 0:00:21.2]} 41... Kf6 {[%clk 0:00:56.1]}
42. b4 {[%clk 0:00:20.5]} 42... h5 {[%clk 0:00:56.2]} 43. c4 {[%clk 0:00:16.8]}
43... g4 {[%clk 0:00:51.9]} 44. hxg4 {[%clk 0:00:16.8]} 44... hxg4 {[%clk
0:00:52.8]} 45. c5 {[%clk 0:00:16.3]} 45... Qb8 {[%clk 0:00:48.1]} 46. Nd4
{[%clk 0:00:15]} 46... g3+ {[%clk 0:00:43.5]} 47. Kg1 {[%clk 0:00:12.9]} 47...
Nxd4 {[%clk 0:00:20.5]} 48. Qxd4+ {[%clk 0:00:12.2]} 48... Kf5 {[%clk
0:00:21.1]} 49. fxg3 {[%clk 0:00:09.7]} 49... fxg3 {[%clk 0:00:22]} 50. Qd3+
{[%clk 0:00:06.6]} 50... Kf6 {[%clk 0:00:19.9]} 51. Qf3+ {[%clk 0:00:06.3]}
51... Ke7 {[%clk 0:00:20.2]} 52. Qe4 {[%clk 0:00:05.7]} 52... Qh8 {[%clk
0:00:15.6]} 53. Kf1 {[%clk 0:00:05.4]} 53... Qa1+ {[%clk 0:00:13.6]} 54. Ke2
{[%clk 0:00:05.8]} 54... Qb2+ {[%clk 0:00:14.1]} 55. Kf3 {[%clk 0:00:06.1]}
55... Qb3+ {[%clk 0:00:14.5]} 56. Kg4 {[%clk 0:00:06.1]} 56... Qc3 {[%clk
0:00:12.5]} 57. Qf4 {[%clk 0:00:05]} 57... Kd7 {[%clk 0:00:11.5]} 58. Qxg3
{[%clk 0:00:04.5]} 58... Qxb4+ {[%clk 0:00:11.1]} 59. Qf4 {[%clk 0:00:04.6]}
59... Qxc5 {[%clk 0:00:11.6]} 60. Qe4 {[%clk 0:00:05]} 60... Qf2 {[%clk
0:00:09.3]} 61. g3 {[%clk 0:00:04.7]} 61... Ke7 {[%clk 0:00:08.9]} 62. Qf4
{[%clk 0:00:04.7]} 62... Qe2+ {[%clk 0:00:08.6]} 63. Kg5 {[%clk 0:00:04.4]}
63... Qb5+ {[%clk 0:00:08]} 64. Kg6 {[%clk 0:00:03.9]} 64... Qe8+ {[%clk
0:00:08.4]} 65. Kg5 {[%clk 0:00:03.7]} 65... Qg8+ {[%clk 0:00:08.3]} 66. Kh4
{[%clk 0:00:04]} 66... Qh7+ {[%clk 0:00:08.5]} 67. Kg4 {[%clk 0:00:04.3]} 67...
Kd7 {[%clk 0:00:07.9]} 68. Kf3 {[%clk 0:00:04]} 68... Qd3+ {[%clk 0:00:07.4]}
69. Qe3 {[%clk 0:00:04.3]} 69... Qf5+ {[%clk 0:00:07.4]} 70. Qf4 {[%clk
0:00:04.8]} 70... Qh5+ {[%clk 0:00:07.6]} 71. Qg4 {[%clk 0:00:05.1]} 71... Qh1+
{[%clk 0:00:07.8]} 72. Kf4 {[%clk 0:00:04.9]} 72... Kd6 {[%clk 0:00:08.2]} 73.
Kg5 {[%clk 0:00:04.9]} 73... e5 {[%clk 0:00:07.1]} 74. Qf5 {[%clk 0:00:03.9]}
74... Qc1+ {[%clk 0:00:05.7]} 75. Kg6 {[%clk 0:00:03.7]} 75... Qe3 {[%clk
0:00:06.2]} 76. g4 {[%clk 0:00:03.9]} 76... e4 {[%clk 0:00:06.7]} 77. g5 {[%clk
0:00:04.2]} 77... Qf3 {[%clk 0:00:07.2]} 78. Qf6+ {[%clk 0:00:02.3]} 78... Kd5
{[%clk 0:00:05.2]} 79. Qf7+ {[%clk 0:00:02.7]} 79... Kd4 {[%clk 0:00:03.5]} 80.
Qd7+ {[%clk 0:00:02.8]} 80... Kc4 {[%clk 0:00:03.8]} 81. Qe6+ {[%clk 0:00:02.7]}
81... Kd3 {[%clk 0:00:03.9]} 82. Kg7 {[%clk 0:00:03.1]} 82... e3 {[%clk
0:00:03.9]} 83. g6 {[%clk 0:00:03.5]} 83... e2 {[%clk 0:00:04.1]} 84. Kh7 {[%clk
0:00:03.2]} 84... Qh1+ {[%clk 0:00:03.6]} 85. Kg8 {[%clk 0:00:03.1]} 85... e1=Q
{[%clk 0:00:04]} 86. Qxe1 {[%clk 0:00:02.9]} 86... Qxe1 {[%clk 0:00:03.6]} 87.
g7 {[%clk 0:00:03.8]} 87... Qe8+ {[%clk 0:00:03.9]} 88. Kh7 {[%clk 0:00:03.8]}
88... Qh5+ {[%clk 0:00:04.4]} 89. Kg8 {[%clk 0:00:03.9]} 89... Ke4 {[%clk
0:00:05.3]} 90. Kf8 {[%clk 0:00:04]} 90... Qf5+ {[%clk 0:00:05.7]} 91. Ke7
{[%clk 0:00:03.8]} 91... Qg6 {[%clk 0:00:05.8]} 92. Kf8 {[%clk 0:00:03.8]} 92...
Qf6+ {[%clk 0:00:06.1]} 93. Kg8 {[%clk 0:00:03.7]} 93... Kf5 {[%clk 0:00:06.5]}
94. Kh8 {[%clk 0:00:04.6]} 94... Kg6 {[%clk 0:00:04.7]} 95. Kg8 {[%clk
0:00:05.5]} 95... Qxg7# {[%clk 0:00:05.2]} 0-1

[Event "*** SCC Grand Prix: Titled Tuesday Blitz"]
[Site "Chess.com"]
[Date "2020.07.07"]
[Round "1"]
[White "JoliyRoger"]
[Black "volcanoexplorer"]
[Result "1/2-1/2"]
[WhiteElo "2262"]
[BlackElo "2584"]
[TimeControl "180+1"]
[EndTime "10:10:56 PDT"]
[Termination "Game drawn - insufficient material"]

1. Nf3 {[%clk 0:03:00.8]} 1... Nf6 {[%clk 0:02:58.7]} 2. c4 {[%clk 0:03:01.1]}
2... e6 {[%clk 0:02:52.2]} 3. Nc3 {[%clk 0:03:01.4]} 3... d5 {[%clk 0:02:52.3]}
4. cxd5 {[%clk 0:03:01.7]} 4... exd5 {[%clk 0:02:53.2]} 5. d4 {[%clk 0:03:02.2]}
5... c6 {[%clk 0:02:53.3]} 6. Bg5 {[%clk 0:03:02.7]} 6... Be7 {[%clk 0:02:53.9]}
7. Bxf6 {[%clk 0:03:03.1]} 7... Bxf6 {[%clk 0:02:53.8]} 8. e3 {[%clk 0:03:04]}
8... Nd7 {[%clk 0:02:53.7]} 9. Bd3 {[%clk 0:03:04.4]} 9... O-O {[%clk 0:02:53]}
10. Qc2 {[%clk 0:03:04.9]} 10... h6 {[%clk 0:02:51]} 11. h3 {[%clk 0:03:05.1]}
11... Nb6 {[%clk 0:02:40]} 12. O-O {[%clk 0:03:04.9]} 12... Re8 {[%clk
0:02:37.7]} 13. b4 {[%clk 0:03:05.2]} 13... a5 {[%clk 0:02:30.1]} 14. b5 {[%clk
0:03:03.3]} 14... Nc4 {[%clk 0:02:29.4]} 15. bxc6 {[%clk 0:02:58.6]} 15... bxc6
{[%clk 0:02:28]} 16. Rac1 {[%clk 0:02:52.7]} 16... Ba6 {[%clk 0:02:22.9]} 17.
Na4 {[%clk 0:02:34.7]} 17... Be7 {[%clk 0:02:14.5]} 18. Qe2 {[%clk 0:02:19.8]}
18... Rb8 {[%clk 0:01:57.7]} 19. Nd2 {[%clk 0:02:10]} 19... Ba3 {[%clk 0:01:33]}
20. Rc2 {[%clk 0:02:07.2]} 20... Bb5 {[%clk 0:01:27.8]} 21. Nc3 {[%clk
0:01:56.2]} 21... Bb4 {[%clk 0:01:21.9]} 22. Nxc4 {[%clk 0:01:48.1]} 22... dxc4
{[%clk 0:01:18.2]} 23. Bxc4 {[%clk 0:01:48.1]} 23... Re7 {[%clk 0:01:03.2]} 24.
Nxb5 {[%clk 0:01:42.6]} 24... cxb5 {[%clk 0:01:04.1]} 25. Bxb5 {[%clk 0:01:42]}
25... Reb7 {[%clk 0:01:03.1]} 26. Bc6 {[%clk 0:01:33.5]} 26... Re7 {[%clk
0:01:01.8]} 27. Qf3 {[%clk 0:01:30]} 27... Qd6 {[%clk 0:00:59.1]} 28. Be4 {[%clk
0:01:14.8]} 28... Rbe8 {[%clk 0:00:57.8]} 29. Bd3 {[%clk 0:01:14.7]} 29... g6
{[%clk 0:00:55.9]} 30. Rc6 {[%clk 0:01:12.3]} 30... Qd7 {[%clk 0:00:53.3]} 31.
Rfc1 {[%clk 0:01:10.2]} 31... Ba3 {[%clk 0:00:49.5]} 32. R1c2 {[%clk 0:01:09.5]}
32... Bd6 {[%clk 0:00:50.1]} 33. g3 {[%clk 0:01:09.7]} 33... Bb8 {[%clk
0:00:49.7]} 34. Kg2 {[%clk 0:01:09.8]} 34... Kg7 {[%clk 0:00:49.4]} 35. h4
{[%clk 0:01:08.8]} 35... h5 {[%clk 0:00:46.7]} 36. R6c5 {[%clk 0:01:04.8]} 36...
Rd8 {[%clk 0:00:42]} 37. Rxa5 {[%clk 0:01:04.3]} 37... Re6 {[%clk 0:00:39]} 38.
Rac5 {[%clk 0:01:04.4]} 38... Rf6 {[%clk 0:00:39.2]} 39. Qe2 {[%clk 0:00:56.8]}
39... Bd6 {[%clk 0:00:35.4]} 40. Rc6 {[%clk 0:00:53.8]} 40... Qb7 {[%clk
0:00:28]} 41. Be4 {[%clk 0:00:53.6]} 41... Qe7 {[%clk 0:00:26.8]} 42. Bf3 {[%clk
0:00:52.4]} 42... Re6 {[%clk 0:00:24.8]} 43. a4 {[%clk 0:00:50.5]} 43... Qa7
{[%clk 0:00:22.3]} 44. Qc4 {[%clk 0:00:49.6]} 44... Re7 {[%clk 0:00:18.7]} 45.
e4 {[%clk 0:00:48.5]} 45... Bb8 {[%clk 0:00:15.6]} 46. d5 {[%clk 0:00:48.2]}
46... Be5 {[%clk 0:00:16]} 47. Ra6 {[%clk 0:00:44.2]} 47... Qb7 {[%clk
0:00:15.9]} 48. Qb5 {[%clk 0:00:43]} 48... Rb8 {[%clk 0:00:13.1]} 49. Qxb7
{[%clk 0:00:42.3]} 49... Rexb7 {[%clk 0:00:14]} 50. Rac6 {[%clk 0:00:37.8]}
50... Rb1 {[%clk 0:00:13.2]} 51. a5 {[%clk 0:00:37.6]} 51... Ra1 {[%clk
0:00:13.3]} 52. a6 {[%clk 0:00:37.9]} 52... Rbb1 {[%clk 0:00:12.6]} 53. Be2
{[%clk 0:00:36.4]} 53... Rg1+ {[%clk 0:00:09.8]} 54. Kf3 {[%clk 0:00:36.6]}
54... Ra3+ {[%clk 0:00:09.6]} 55. Bd3 {[%clk 0:00:34.7]} 55... Rxd3+ {[%clk
0:00:09.7]} 56. Ke2 {[%clk 0:00:35.3]} 56... Ra3 {[%clk 0:00:10.1]} 57. d6
{[%clk 0:00:35.1]} 57... Rga1 {[%clk 0:00:01.8]} 58. d7 {[%clk 0:00:34.8]} 58...
Bf6 {[%clk 0:00:02.5]} 59. Rxf6 {[%clk 0:00:35.1]} 59... Kxf6 {[%clk 0:00:03.3]}
60. d8=Q+ {[%clk 0:00:35.6]} 60... Kg7 {[%clk 0:00:04.1]} 61. Qd4+ {[%clk
0:00:36]} 61... Kh7 {[%clk 0:00:04.2]} 62. e5 {[%clk 0:00:33.5]} 62... Rxa6
{[%clk 0:00:04.4]} 63. Kf3 {[%clk 0:00:33.3]} 63... R1a4 {[%clk 0:00:04.4]} 64.
Qc3 {[%clk 0:00:32.5]} 64... Ra3 {[%clk 0:00:04.8]} 65. Kg2 {[%clk 0:00:26.8]}
65... Rxc3 {[%clk 0:00:05]} 66. Rxc3 {[%clk 0:00:27.6]} 66... Kg7 {[%clk
0:00:05.6]} 67. Rc7 {[%clk 0:00:27.3]} 67... Re6 {[%clk 0:00:05.9]} 68. Rc5
{[%clk 0:00:27.6]} 68... Ra6 {[%clk 0:00:06.4]} 69. Kf3 {[%clk 0:00:28.2]} 69...
Kf8 {[%clk 0:00:06.9]} 70. g4 {[%clk 0:00:28]} 70... hxg4+ {[%clk 0:00:06.9]}
71. Kxg4 {[%clk 0:00:28.2]} 71... Ra4+ {[%clk 0:00:07.1]} 72. f4 {[%clk
0:00:29.1]} 72... Kg7 {[%clk 0:00:05.4]} 73. Rc8 {[%clk 0:00:29.4]} 73... Re4
{[%clk 0:00:05.3]} 74. Rc7 {[%clk 0:00:29.7]} 74... Re1 {[%clk 0:00:05.4]} 75.
Kg3 {[%clk 0:00:28.6]} 75... Kg8 {[%clk 0:00:03.6]} 76. Kf3 {[%clk 0:00:28.1]}
76... Rf1+ {[%clk 0:00:03.5]} 77. Kg2 {[%clk 0:00:28.3]} 77... Re1 {[%clk
0:00:03.9]} 78. Kg3 {[%clk 0:00:28.3]} 78... Rf1 {[%clk 0:00:04.2]} 79. Rc3
{[%clk 0:00:27.5]} 79... Rg1+ {[%clk 0:00:04.4]} 80. Kf2 {[%clk 0:00:26.8]}
80... Rh1 {[%clk 0:00:04.5]} 81. Kg3 {[%clk 0:00:26.5]} 81... Rg1+ {[%clk
0:00:05]} 82. Kf3 {[%clk 0:00:25.7]} 82... Rf1+ {[%clk 0:00:05.3]} 83. Ke4
{[%clk 0:00:25.8]} 83... Re1+ {[%clk 0:00:05.5]} 84. Kd5 {[%clk 0:00:25.3]}
84... Rd1+ {[%clk 0:00:06]} 85. Kc6 {[%clk 0:00:23]} 85... Rh1 {[%clk
0:00:06.5]} 86. Kd6 {[%clk 0:00:22.4]} 86... Rxh4 {[%clk 0:00:06.5]} 87. Rc4
{[%clk 0:00:23]} 87... Kg7 {[%clk 0:00:05]} 88. Kd5 {[%clk 0:00:22.4]} 88... Rh1
{[%clk 0:00:04.2]} 89. Ke4 {[%clk 0:00:22.1]} 89... Re1+ {[%clk 0:00:04.5]} 90.
Kf3 {[%clk 0:00:22.1]} 90... Ra1 {[%clk 0:00:05]} 91. Kg3 {[%clk 0:00:22.3]}
91... Ra3+ {[%clk 0:00:05.4]} 92. Kg4 {[%clk 0:00:22.6]} 92... Ra1 {[%clk
0:00:06]} 93. Rc7 {[%clk 0:00:23]} 93... Rg1+ {[%clk 0:00:06.3]} 94. Kf3 {[%clk
0:00:23.1]} 94... Kf8 {[%clk 0:00:07]} 95. Kf2 {[%clk 0:00:23.2]} 95... Rh1
{[%clk 0:00:07.2]} 96. Kg3 {[%clk 0:00:23.3]} 96... Rg1+ {[%clk 0:00:07.5]} 97.
Kf2 {[%clk 0:00:23.4]} 97... Ra1 {[%clk 0:00:08.2]} 98. Kf3 {[%clk 0:00:23.4]}
98... Kg8 {[%clk 0:00:08.1]} 99. Kg4 {[%clk 0:00:23.7]} 99... Rg1+ {[%clk
0:00:08.2]} 100. Kh4 {[%clk 0:00:24.2]} 100... Re1 {[%clk 0:00:07.5]} 101. Kg5
{[%clk 0:00:24.3]} 101... Kg7 {[%clk 0:00:08.1]} 102. Rd7 {[%clk 0:00:23.4]}
102... Re4 {[%clk 0:00:08.2]} 103. Kg4 {[%clk 0:00:23.3]} 103... Re1 {[%clk
0:00:08]} 104. Kf3 {[%clk 0:00:23.7]} 104... Rf1+ {[%clk 0:00:08.2]} 105. Kg2
{[%clk 0:00:24.1]} 105... Rxf4 {[%clk 0:00:08]} 106. e6 {[%clk 0:00:24.6]}
106... Kf8 {[%clk 0:00:06]} 107. exf7 {[%clk 0:00:21.6]} 107... Rxf7 {[%clk
0:00:06.9]} 108. Rd6 {[%clk 0:00:22.3]} 108... Kg7 {[%clk 0:00:06.4]} 109. Kg3
{[%clk 0:00:22.8]} 109... Ra7 {[%clk 0:00:07]} 110. Kg4 {[%clk 0:00:22.8]}
110... Ra4+ {[%clk 0:00:07.3]} 111. Kg3 {[%clk 0:00:22.1]} 111... Kh6 {[%clk
0:00:07]} 112. Rb6 {[%clk 0:00:22]} 112... Kh5 {[%clk 0:00:06.9]} 113. Rb5+
{[%clk 0:00:22.4]} 113... g5 {[%clk 0:00:07.2]} 114. Rb8 {[%clk 0:00:22.7]}
114... Ra3+ {[%clk 0:00:07.6]} 115. Kg2 {[%clk 0:00:22.9]} 115... Ra4 {[%clk
0:00:07.2]} 116. Rb5 {[%clk 0:00:21.9]} 116... Kh4 {[%clk 0:00:07]} 117. Rb3
{[%clk 0:00:20]} 117... Ra2+ {[%clk 0:00:07.2]} 118. Kg1 {[%clk 0:00:20]} 118...
Re2 {[%clk 0:00:07.4]} 119. Kh1 {[%clk 0:00:20.1]} 119... Rf2 {[%clk 0:00:07.3]}
120. Kg1 {[%clk 0:00:20.5]} 120... Rf4 {[%clk 0:00:07.9]} 121. Kh1 {[%clk
0:00:20.4]} 121... Rg4 {[%clk 0:00:08.5]} 122. Kh2 {[%clk 0:00:20.4]} 122... Rd4
{[%clk 0:00:08.8]} 123. Rh3+ {[%clk 0:00:20.8]} 123... Kg4 {[%clk 0:00:08.8]}
124. Rb3 {[%clk 0:00:21.3]} 124... Kf4 {[%clk 0:00:08.9]} 125. Kg2 {[%clk
0:00:21.4]} 125... Re4 {[%clk 0:00:08.7]} 126. Kf2 {[%clk 0:00:21.3]} 126... g4
{[%clk 0:00:07.8]} 127. Rb8 {[%clk 0:00:19.9]} 127... Re5 {[%clk 0:00:04.9]}
128. Rf8+ {[%clk 0:00:20.2]} 128... Ke4 {[%clk 0:00:05.4]} 129. Rb8 {[%clk
0:00:20.1]} 129... Rg5 {[%clk 0:00:03.4]} 130. Kg3 {[%clk 0:00:19.9]} 130... Rg7
{[%clk 0:00:03.3]} 131. Rb4+ {[%clk 0:00:20]} 131... Kf5 {[%clk 0:00:03.7]} 132.
Rf4+ {[%clk 0:00:20]} 132... Ke5 {[%clk 0:00:04.1]} 133. Rxg4 {[%clk 0:00:20.4]}
133... Rxg4+ {[%clk 0:00:05]} 134. Kxg4 {[%clk 0:00:21.3]} 1/2-1/2

[Event "*** SCC Grand Prix: Titled Tuesday Blitz"]
[Site "Chess.com"]
[Date "2020.07.07"]
[Round "2"]
[White "Andrii_Prydun"]
[Black "TioCridineno"]
[Result "1-0"]
[WhiteElo "2401"]
[BlackElo "2101"]
[TimeControl "180+1"]
[EndTime "10:12:52 PDT"]
[Termination "Andrii_Prydun won by resignation"]

1. d4 {[%clk 0:03:00.9]} 1... Nf6 {[%clk 0:02:59.8]} 2. Nc3 {[%clk 0:03:01]}
2... d5 {[%clk 0:02:59.3]} 3. Bf4 {[%clk 0:03:00.9]} 3... c6 {[%clk 0:02:59.1]}
4. e3 {[%clk 0:02:59.3]} 4... Bf5 {[%clk 0:02:58.7]} 5. Nf3 {[%clk 0:02:55.2]}
5... e6 {[%clk 0:02:58.4]} 6. Ne5 {[%clk 0:02:54.6]} 6... Nbd7 {[%clk 0:02:58]}
7. g4 {[%clk 0:02:54.4]} 7... Bg6 {[%clk 0:02:57.7]} 8. h4 {[%clk 0:02:50.3]}
8... h5 {[%clk 0:02:53.4]} 9. Nxg6 {[%clk 0:02:49.1]} 9... fxg6 {[%clk
0:02:53.6]} 10. Bd3 {[%clk 0:02:46.4]} 10... Kf7 {[%clk 0:02:52.5]} 11. g5
{[%clk 0:02:44.1]} 11... Ne8 {[%clk 0:02:51.8]} 12. Qf3 {[%clk 0:02:41.5]} 12...
Kg8 {[%clk 0:02:34.5]} 13. Bxg6 {[%clk 0:02:40.3]} 13... Bd6 {[%clk 0:02:34.5]}
14. Bxe8 {[%clk 0:02:37.8]} 14... Bxf4 {[%clk 0:02:33.1]} 15. Bxd7 {[%clk
0:02:38.1]} 1-0

[Event "*** SCC Grand Prix: Titled Tuesday Blitz"]
[Site "Chess.com"]
[Date "2020.07.07"]
[Round "2"]
[White "biaf13"]
[Black "Tekushka"]
[Result "0-1"]
[WhiteElo "1948"]
[BlackElo "2363"]
[TimeControl "180+1"]
[EndTime "10:13:13 PDT"]
[Termination "Tekushka won by resignation"]

1. e4 {[%clk 0:03:00.9]} 1... c5 {[%clk 0:02:58.5]} 2. Nf3 {[%clk 0:02:59.9]}
2... Nc6 {[%clk 0:02:58.6]} 3. d4 {[%clk 0:03:00.2]} 3... cxd4 {[%clk
0:02:58.1]} 4. Nxd4 {[%clk 0:03:01.1]} 4... e6 {[%clk 0:02:58.4]} 5. Nc3 {[%clk
0:02:58]} 5... d6 {[%clk 0:02:58.6]} 6. g4 {[%clk 0:02:52.8]} 6... a6 {[%clk
0:02:57.8]} 7. Be3 {[%clk 0:02:49.2]} 7... Nge7 {[%clk 0:02:57.6]} 8. Qd2 {[%clk
0:02:47]} 8... Ng6 {[%clk 0:02:53.3]} 9. O-O-O {[%clk 0:02:44.1]} 9... Be7
{[%clk 0:02:51.5]} 10. f4 {[%clk 0:02:42.1]} 10... Nxd4 {[%clk 0:02:47.2]} 11.
Bxd4 {[%clk 0:02:33.6]} 11... e5 {[%clk 0:02:32]} 12. Be3 {[%clk 0:02:16.2]}
12... exf4 {[%clk 0:02:22.5]} 13. Bxf4 {[%clk 0:02:17.1]} 13... Nxf4 {[%clk
0:02:21.9]} 14. Qxf4 {[%clk 0:02:18]} 14... Bg5 {[%clk 0:02:21.8]} 0-1

[Event "*** SCC Grand Prix: Titled Tuesday Blitz"]
[Site "Chess.com"]
[Date "2020.07.07"]
[Round "2"]
[White "GiorgianBarbosa"]
[Black "Pultis"]
[Result "0-1"]
[WhiteElo "2429"]
[BlackElo "2661"]
[TimeControl "180+1"]
[EndTime "10:13:47 PDT"]
[Termination "Pultis won by resignation"]

1. c4 {[%clk 0:03:00.9]} 1... b6 {[%clk 0:02:57.3]} 2. Nf3 {[%clk 0:02:57.7]}
2... Bb7 {[%clk 0:02:58.2]} 3. g3 {[%clk 0:02:58.2]} 3... e6 {[%clk 0:02:59.1]}
4. Bg2 {[%clk 0:02:58.3]} 4... Nf6 {[%clk 0:02:59.8]} 5. O-O {[%clk 0:02:58.8]}
5... Be7 {[%clk 0:03:00.4]} 6. d4 {[%clk 0:02:59.3]} 6... O-O {[%clk 0:03:00.6]}
7. Nc3 {[%clk 0:02:59.9]} 7... Nc6 {[%clk 0:02:58]} 8. d5 {[%clk 0:02:58.4]}
8... Na5 {[%clk 0:02:57.8]} 9. b3 {[%clk 0:02:55.7]} 9... exd5 {[%clk 0:02:56]}
10. cxd5 {[%clk 0:02:53]} 10... Re8 {[%clk 0:02:53.4]} 11. Nd4 {[%clk
0:02:48.8]} 11... Bb4 {[%clk 0:02:50.9]} 12. Bb2 {[%clk 0:02:38.2]} 12... Bxc3
{[%clk 0:02:47.5]} 13. Bxc3 {[%clk 0:02:39.1]} 13... Bxd5 {[%clk 0:02:46.1]} 14.
Bxa5 {[%clk 0:02:37]} 14... Bxg2 {[%clk 0:02:42.8]} 15. Kxg2 {[%clk 0:02:36.8]}
15... bxa5 {[%clk 0:02:43.3]} 16. e3 {[%clk 0:02:28.1]} 16... c6 {[%clk
0:02:39.8]} 17. Qd2 {[%clk 0:02:13]} 17... Qb6 {[%clk 0:02:37.8]} 18. Nf5 {[%clk
0:02:05.2]} 18... Re5 {[%clk 0:02:37.1]} 19. Qc2 {[%clk 0:01:58.9]} 19... Qc5
{[%clk 0:02:33.8]} 20. Qxc5 {[%clk 0:01:51]} 20... Rxc5 {[%clk 0:02:34.7]} 21.
Rfd1 {[%clk 0:01:51.4]} 21... Rxf5 {[%clk 0:02:33.8]} 0-1

[Event "*** SCC Grand Prix: Titled Tuesday Blitz"]
[Site "Chess.com"]
[Date "2020.07.07"]
[Round "2"]
[White "valeriocarnicelli"]
[Black "TamirNabaty"]
[Result "0-1"]
[WhiteElo "2492"]
[BlackElo "2732"]
[TimeControl "180+1"]
[EndTime "10:13:53 PDT"]
[Termination "TamirNabaty won by resignation"]

1. e4 {[%clk 0:02:54.1]} 1... e5 {[%clk 0:03:00]} 2. Nf3 {[%clk 0:02:54.1]} 2...
Nc6 {[%clk 0:03:00.5]} 3. d4 {[%clk 0:02:54.5]} 3... exd4 {[%clk 0:03:00.3]} 4.
Bc4 {[%clk 0:02:54.6]} 4... Bc5 {[%clk 0:02:58.5]} 5. c3 {[%clk 0:02:54.6]} 5...
d6 {[%clk 0:02:58.8]} 6. cxd4 {[%clk 0:02:54.1]} 6... Bb6 {[%clk 0:02:59.3]} 7.
O-O {[%clk 0:02:53.6]} 7... Nf6 {[%clk 0:02:56.6]} 8. Nc3 {[%clk 0:02:53.7]}
8... O-O {[%clk 0:02:53.8]} 9. Bg5 {[%clk 0:02:53.4]} 9... h6 {[%clk 0:02:50.7]}
10. Bh4 {[%clk 0:02:53.6]} 10... Bg4 {[%clk 0:02:50.1]} 11. Nd5 {[%clk 0:02:53]}
11... g5 {[%clk 0:02:48.6]} 12. Bg3 {[%clk 0:02:27.3]} 12... Nxe4 {[%clk
0:02:31.5]} 13. Qd3 {[%clk 0:02:22.4]} 13... Nxg3 {[%clk 0:02:17.5]} 14. Nxb6
{[%clk 0:02:14.1]} 14... Bf5 {[%clk 0:02:17]} 15. Qc3 {[%clk 0:01:57.9]} 15...
Ne4 {[%clk 0:02:14.1]} 16. Qe3 {[%clk 0:01:56.9]} 16... axb6 {[%clk 0:02:13.4]}
0-1

[Event "*** SCC Grand Prix: Titled Tuesday Blitz"]
[Site "Chess.com"]
[Date "2020.07.07"]
[Round "2"]
[White "ambaixador"]
[Black "BillieKimbah"]
[Result "0-1"]
[WhiteElo "2342"]
[BlackElo "2879"]
[TimeControl "180+1"]
[EndTime "10:13:58 PDT"]
[Termination "BillieKimbah won by resignation"]

1. Nf3 {[%clk 0:03:00.9]} 1... Nf6 {[%clk 0:02:58.3]} 2. c4 {[%clk 0:03:00.1]}
2... e6 {[%clk 0:02:56.9]} 3. g3 {[%clk 0:03:01]} 3... a6 {[%clk 0:02:56.9]} 4.
Bg2 {[%clk 0:03:01.3]} 4... b5 {[%clk 0:02:57]} 5. Ne5 {[%clk 0:02:53.3]} 5...
Ra7 {[%clk 0:02:54.6]} 6. b3 {[%clk 0:02:20.5]} 6... Bb7 {[%clk 0:02:54.6]} 7.
O-O {[%clk 0:02:19.4]} 7... Bxg2 {[%clk 0:02:53.9]} 8. Kxg2 {[%clk 0:02:20.3]}
8... c5 {[%clk 0:02:41]} 9. d4 {[%clk 0:02:14.5]} 9... Qc7 {[%clk 0:02:31.8]}
10. Bf4 {[%clk 0:02:07]} 10... d6 {[%clk 0:02:30.8]} 11. Nf3 {[%clk 0:01:59.2]}
11... cxd4 {[%clk 0:02:30.9]} 12. Qxd4 {[%clk 0:01:58.2]} 12... e5 {[%clk
0:02:28.6]} 13. Nxe5 {[%clk 0:01:56.3]} 13... dxe5 {[%clk 0:02:29.5]} 14. Bxe5
{[%clk 0:01:56.9]} 14... Qb7+ {[%clk 0:02:24.6]} 15. Kg1 {[%clk 0:01:55.5]}
15... Nc6 {[%clk 0:02:24.9]} 16. Qe3 {[%clk 0:01:44.9]} 16... Ng4 {[%clk
0:02:24.3]} 0-1